bitfinex/quotes_SOLUSD_20250917
["timestamp","ask_amount","ask_price","bid_price","bid_amount"]
[1758133276606,34.18820019,234.97,234.96,0.1]
[1758133276895,26.0,234.97,234.96,0.1]
[1758133277095,3.93233774,234.98,234.96,0.1]
[1758133277295,0.66,235.05,234.96,0.1]
[1758133277296,26.0,235.01,234.96,0.1]
[1758133277602,3.93233774,235.05,234.99,3.93233774]
[1758133277803,3.93233774,235.07,235.0,3.93233774]
[1758133278004,3.93233774,235.04,234.97,3.93233774]
[1758133278207,3.93233774,235.01,234.96,0.1]
[1758133278513,3.93233774,235.0,234.96,0.1]
[1758133278708,3.93233774,235.02,234.96,0.1]
[1758133279217,30.91461331,235.04,234.96,0.1]
[1758133279218,3.93233774,235.01,234.96,0.1]
[1758133279518,3.93233774,234.99,234.96,0.1]
[1758133280318,13.59559401,235.07,234.96,0.1]
[1758133280319,3.93233774,235.03,234.96,0.82]
[1758133280515,26.0,235.03,234.97,3.93233774]
[1758133280713,28.48477595,235.07,234.96,0.1]
[1758133280714,4.2538891,235.08,234.96,0.1]
[1758133281025,4.2538891,235.08,235.04,3.93233774]
[1758133281196,0.66,235.07,234.98,0.72]
[1758133281391,3.93233774,235.01,234.96,0.1]
[1758133281904,3.93233774,235.02,234.96,0.1]
[1758133282106,3.93233774,235.01,234.96,0.1]
[1758133282312,3.93233774,234.97,234.96,0.1]
[1758133282502,3.93233774,235.02,234.96,0.1]
[1758133282701,26.0,235.04,234.97,3.93233774]
[1758133283004,3.93233774,235.01,234.96,0.1]
[1758133283216,3.93233774,234.98,234.96,0.1]
[1758133283418,4.59233774,234.97,234.96,0.1]
[1758133283728,3.93233774,234.97,234.96,0.1]
[1758133284438,3.93233774,234.97,234.88,0.06]
[1758133284439,26.0,234.93,234.88,0.06]
[1758133284631,34.18964967,234.89,234.88,0.06]
[1758133285101,8.18964967,234.89,234.88,0.06]
[1758133285299,8.18964967,234.89,234.87,0.06]
[1758133285829,4.25731193,234.89,234.87,0.06]
[1758133286699,8.18964967,234.89,234.87,0.06]
[1758133286954,4.25731193,234.89,234.87,0.06]
[1758133287103,3.93233774,234.9,234.87,0.06]
[1758133287512,3.93233774,234.88,234.87,0.06]
[1758133287712,29.93233774,234.88,234.87,0.06]
[1758133287913,30.59233774,234.88,234.87,0.06]
[1758133288107,44.18793175,234.88,234.74,0.82]
[1758133288331,43.42,234.87,234.79,3.93233774]
[1758133288515,43.42,234.92,234.8,0.72]
[1758133288714,43.42,234.92,234.86,3.93233774]
[1758133288919,43.42,234.94,234.84,0.72]
[1758133289119,43.42,234.94,234.88,3.93233774]
[1758133289320,3.93233774,234.92,234.84,0.72]
[1758133289522,43.42,234.94,234.85,3.93233774]
[1758133289829,43.42,234.94,234.81,4.2587624]
[1758133289830,3.93233774,234.86,234.8,3.93233774]
[1758133290130,43.42,234.94,234.85,3.93233774]
[1758133290313,43.42,234.94,234.88,3.93233774]
[1758133290633,3.93233774,234.94,234.87,3.93233774]
[1758133290836,13.59559401,235.01,234.77,40.90810643]
[1758133290837,0.66,235.02,234.93,3.93233774]
[1758133291145,3.93233774,235.0,234.94,3.93233774]
[1758133291740,3.93233774,234.99,234.93,3.93233774]
[1758133291944,3.93233774,234.99,234.86,30.25785574]
[1758133291945,47.31233774,235.02,234.95,3.93233774]
[1758133292120,0.66,235.01,234.88,0.72]
[1758133292515,0.66,235.01,234.9,3.93233774]
[1758133292716,47.27233774,235.04,234.98,3.93233774]
[1758133292908,47.27233774,235.04,234.88,29.93233774]
[1758133292909,0.66,235.05,234.92,4.97676826]
[1758133293108,3.93233774,234.99,234.92,0.72]
[1758133293334,3.93233774,234.93,234.85,26.72]
[1758133293634,3.93233774,234.91,234.85,0.72]
[1758133293931,3.93233774,234.9,234.84,3.93233774]
[1758133294110,3.93233774,234.89,234.81,0.68]
[1758133294310,0.66,234.95,234.86,3.93233774]
[1758133294539,3.93233774,234.94,234.87,0.68]
[1758133295059,3.93233774,234.88,234.79,0.68]
[1758133295221,3.93233774,234.83,234.75,0.68]
[1758133295539,3.93233774,234.84,234.77,3.93233774]
[1758133295727,3.93233774,234.81,234.74,0.1]
[1758133296047,3.93233774,234.78,234.74,0.1]
[1758133296249,3.93233774,234.75,234.6,2.43509459]
[1758133296430,3.93233774,234.7,234.57,64.34796166]
[1758133296631,43.28,234.75,234.68,3.93233774]
[1758133296830,39.59559401,234.79,234.73,3.93233774]
[1758133296831,53.92820829,234.79,234.73,3.93233774]
[1758133297136,4.25912517,234.79,234.77,3.93233774]
[1758133297341,43.97,234.83,234.77,3.93233774]
[1758133297546,4.2587624,234.81,234.76,3.93233774]
[1758133297712,4.2587624,234.81,234.77,3.93233774]
[1758133297916,0.71,234.93,234.8,3.93233774]
[1758133298116,43.26,234.92,234.83,3.93233774]
[1758133298348,26.0,234.89,234.78,0.68]
[1758133298518,3.93233774,234.92,234.85,3.93233774]
[1758133298722,3.35793901,235.01,234.83,0.68]
[1758133298723,47.17233774,234.95,234.83,0.68]
[1758133298940,47.17233774,234.95,234.75,39.59559401]
[1758133298941,13.59559401,234.93,234.75,26.68]
[1758133299121,14.89742061,234.94,234.85,3.93233774]
[1758133299122,4.25640589,234.94,234.85,3.93233774]
[1758133299321,4.25640589,234.94,234.75,4.25980732]
[1758133299322,3.93233774,234.93,234.86,3.93233774]
[1758133299545,43.24,234.95,234.87,3.93233774]
[1758133299746,3.93233774,234.92,234.78,26.0]
[1758133299952,3.93233774,234.92,234.85,3.93233774]
[1758133300159,3.93233774,234.95,234.88,3.93233774]
[1758133300446,67.61260362,235.11,234.89,3.93233774]
[1758133300447,4.64233774,234.96,234.89,3.93233774]
[1758133300745,3.93233774,234.96,234.89,3.93233774]
[1758133300915,0.71,234.99,234.79,26.0]
[1758133300916,0.71,235.02,234.92,3.93233774]
[1758133301116,0.71,235.02,234.88,0.68]
[1758133301117,3.93233774,235.0,234.88,0.68]
[1758133301428,3.93233774,235.0,234.84,26.0]
[1758133301429,3.93233774,234.98,234.84,26.0]
[1758133301766,0.71,235.03,234.95,3.93233774]
[1758133302050,3.93233774,235.04,234.93,0.68]
[1758133302221,0.71,235.07,234.97,3.93233774]
[1758133302416,0.71,235.07,234.93,0.68]
[1758133302417,3.93233774,235.05,234.98,3.93233774]
[1758133302620,43.89,235.07,234.99,3.93233774]
[1758133302818,8.18662255,235.06,234.94,4.25640589]
[1758133303038,3.93233774,235.06,234.99,3.93233774]
[1758133303237,0.71,235.1,234.99,0.68]
[1758133303427,0.71,235.1,235.01,3.93233774]
[1758133303428,3.93233774,235.08,235.01,3.93233774]
[1758133303617,3.93233774,235.09,235.02,3.93233774]
[1758133303817,0.74,235.1,235.02,3.93233774]
[1758133303818,0.03,235.1,235.02,3.93233774]
[1758133304017,0.03,235.1,235.03,3.93233774]
[1758133304249,3.93233774,235.08,234.99,0.68]
[1758133304436,3.93233774,235.0,234.9,12.66719739]
[1758133304623,0.71,235.04,234.89,0.68]
[1758133304820,14.89171594,235.03,234.9,3.93233774]
[1758133305053,3.93233774,234.95,234.89,0.68]
[1758133305216,14.30559401,235.02,234.91,3.93233774]
[1758133305423,3.93233774,234.98,234.92,3.93233774]
[1758133305617,3.93233774,234.93,234.85,0.74]
[1758133305924,5.73224275,234.93,234.85,0.74]
[1758133306116,5.73224275,234.91,234.85,0.06]
[1758133306318,5.73224275,234.9,234.85,0.06]
[1758133306524,5.73224275,234.87,234.85,0.06]
[1758133306738,5.73224275,234.9,234.85,0.06]
[1758133306939,4.25550023,234.99,234.89,5.73224275]
[1758133307146,5.73224275,234.98,234.91,5.73224275]
[1758133307353,57.97425081,234.99,234.91,5.73224275]
[1758133307554,43.08,234.99,234.93,5.73224275]
[1758133307855,20.0,235.16,234.93,5.73224275]
[1758133307856,4.25369007,235.09,234.97,5.73224275]
[1758133308033,5.73224275,235.0,234.93,0.68]
[1758133308349,0.71,235.04,234.92,5.73224275]
[1758133308526,0.71,235.04,234.93,5.73224275]
[1758133308722,43.06,235.07,234.96,5.73224275]
[1758133308953,5.73224275,235.02,234.95,5.73224275]
[1758133309123,5.73224275,235.03,234.96,5.73224275]
[1758133309625,5.73224275,234.98,234.89,0.68]
[1758133309828,43.04,235.05,234.94,5.73224275]
[1758133310048,17.84948918,235.08,234.94,5.73224275]
[1758133310049,4.25389517,235.08,234.97,5.73224275]
[1758133310254,5.73224275,235.04,234.98,0.68]
[1758133310458,0.71,235.09,234.96,6.41224275]
[1758133310744,0.74,235.1,234.99,5.73224275]
[1758133310921,5.73224275,235.06,234.99,5.73224275]
[1758133311345,5.73224275,235.06,234.96,5.73224275]
[1758133311346,5.73224275,235.03,234.96,5.73224275]
[1758133311552,13.59559401,235.09,234.96,5.73224275]
[1758133311856,0.03,235.1,235.04,5.73224275]
[1758133312024,0.03,235.1,235.06,5.73224275]
[1758133312230,0.03,235.1,234.95,13.59559401]
[1758133312231,0.03,235.1,235.08,5.73224275]
[1758133312436,0.03,235.1,235.07,5.73224275]
[1758133312723,0.03,235.1,234.95,14.02121648]
[1758133312724,0.03,235.13,235.09,5.73224275]
[1758133312951,0.03,235.13,235.12,5.73224275]
[1758133313253,0.03,235.13,235.08,0.68]
[1758133313460,0.03,235.13,235.04,0.68]
[1758133313461,5.76224275,235.13,235.04,0.68]
[1758133313650,0.03,235.13,235.05,5.73224275]
[1758133313818,0.03,235.13,235.04,6.41224275]
[1758133313819,5.73224275,235.11,235.04,6.41224275]
[1758133314023,0.03,235.13,235.08,5.73224275]
[1758133314246,0.03,235.13,235.09,5.73224275]
[1758133314469,0.03,235.13,235.04,4.25452885]
[1758133314622,0.03,235.13,235.09,5.73224275]
[1758133314824,0.03,235.13,235.12,5.73224275]
[1758133315050,0.03,235.13,235.12,6.41224275]
[1758133315762,0.2,235.18,235.13,4.25296644]
[1758133315924,0.2,235.18,235.17,5.73224275]
[1758133316319,0.2,235.18,235.17,0.68]
[1758133316537,0.2,235.18,235.15,5.73224275]
[1758133316752,0.2,235.18,235.17,6.41224275]
[1758133316940,0.2,235.18,235.17,10.6644858]
[1758133317835,0.2,235.18,235.17,24.26007981]
[1758133318028,0.2,235.18,235.17,20.00783676]
[1758133318257,0.2,235.18,235.17,6.41224275]
[1758133318547,0.2,235.18,235.17,6.83746705]
[1758133318727,0.2,235.18,235.17,6.41224275]
[1758133320237,0.2,235.18,235.17,0.68]
[1758133320431,0.2,235.18,235.17,6.44224275]
[1758133320844,0.03,235.26,235.21,13.59559401]
[1758133321071,0.03,235.28,235.27,26.0]
[1758133321366,0.03,235.4,235.32,13.59559401]
[1758133321535,0.03,235.4,235.37,5.73224275]
[1758133321735,0.03,235.4,235.37,19.32783676]
[1758133321970,0.03,235.4,235.39,39.59559401]
[1758133322161,6.43224275,235.56,235.39,19.75266364]
[1758133322330,0.2,235.59,235.47,13.59559401]
[1758133322535,0.7,235.58,235.47,13.59559401]
[1758133322752,0.7,235.58,235.53,5.73224275]
[1758133323069,0.7,235.58,235.47,13.59559401]
[1758133323070,0.2,235.59,235.56,5.73224275]
[1758133323238,0.2,235.59,235.5,30.2461612]
[1758133323445,0.2,235.59,235.53,5.73224275]
[1758133323655,0.2,235.59,235.51,0.71]
[1758133323656,0.2,235.59,235.56,5.73224275]
[1758133323961,0.2,235.59,235.51,0.71]
[1758133323962,10.84697187,235.59,235.52,5.73224275]
[1758133324173,0.2,235.59,235.53,5.73224275]
[1758133324354,0.2,235.59,235.48,4.24650796]
[1758133324355,5.73224275,235.55,235.48,26.0]
[1758133324535,15.05637911,235.59,235.45,42.72]
[1758133324536,0.67,235.54,235.45,26.0]
[1758133324864,5.73224275,235.52,235.45,26.0]
[1758133325063,5.73224275,235.49,235.44,26.0]
[1758133325264,6.40224275,235.48,235.44,26.0]
[1758133325561,0.67,235.55,235.46,5.73224275]
[1758133325743,5.73224275,235.54,235.47,5.73224275]
[1758133325938,5.73224275,235.54,235.44,26.7]
[1758133326141,5.73224275,235.54,235.46,5.73224275]
[1758133326347,0.67,235.55,235.46,5.73224275]
[1758133326540,5.73224275,235.49,235.44,26.0]
[1758133326734,5.73224275,235.48,235.44,26.0]
[1758133326937,0.67,235.58,235.47,5.73224275]
[1758133327151,0.67,235.58,235.46,4.24700586]
[1758133327344,6.40224275,235.58,235.47,26.0]
[1758133327547,4.91489877,235.58,235.52,5.73224275]
[1758133327837,5.73224275,235.57,235.47,26.0]
[1758133328138,10.64712476,235.58,235.47,26.0]
[1758133328348,4.91488201,235.58,235.5,5.73224275]
[1758133328660,5.73224275,235.57,235.5,5.73224275]
[1758133328851,0.2,235.59,235.49,26.0]
[1758133329045,0.2,235.59,235.54,5.73224275]
[1758133329251,0.2,235.59,235.55,5.73224275]
[1758133329443,0.2,235.59,235.54,5.73224275]
[1758133329846,0.2,235.59,235.5,26.0]
[1758133330079,0.2,235.59,235.55,5.73224275]
[1758133330279,0.2,235.59,235.58,5.73224275]
[1758133330649,0.06,235.65,235.61,26.0]
[1758133331149,0.06,235.65,235.59,5.73224275]
[1758133331348,5.73224275,235.64,235.57,31.73224275]
[1758133331544,0.06,235.65,235.61,5.73224275]
[1758133331775,0.06,235.65,235.63,5.73224275]
[1758133332364,0.06,235.65,235.64,5.73224275]
[1758133332545,0.06,235.65,235.59,26.0]
[1758133332755,0.06,235.65,235.64,5.73224275]
[1758133332965,0.06,235.65,235.59,39.04105564]
[1758133333156,0.06,235.65,235.62,5.73224275]
[1758133333489,0.06,235.65,235.59,39.04105564]
[1758133333490,0.06,235.65,235.64,5.73224275]
[1758133333977,0.06,235.65,235.64,20.02783676]
[1758133334145,0.06,235.68,235.64,20.02783676]
[1758133334350,0.06,235.68,235.62,5.73224275]
[1758133334351,0.06,235.68,235.67,45.32783676]
[1758133334777,0.06,235.68,235.67,46.02783676]
[1758133335279,0.06,235.68,235.66,13.59559401]
[1758133335460,0.06,235.68,235.63,4.24394177]
[1758133335461,0.06,235.68,235.67,26.0]
[1758133335981,0.06,235.68,235.61,13.59559401]
[1758133336181,0.06,235.68,235.59,17.98564989]
[1758133336182,4.30311903,235.68,235.59,17.98564989]
[1758133336477,6.40224275,235.67,235.59,18.77329839]
[1758133336678,5.73224275,235.64,235.59,13.04105564]
[1758133336976,5.73224275,235.63,235.56,5.73224275]
[1758133337184,14.91072256,235.68,235.56,5.73224275]
[1758133337185,0.73,235.68,235.59,5.73224275]
[1758133337355,0.06,235.68,235.64,5.73224275]
[1758133337556,0.06,235.68,235.66,5.73224275]
[1758133337779,0.06,235.68,235.67,5.73224275]
[1758133337997,0.06,235.68,235.66,0.5]
[1758133338283,0.06,235.68,235.67,5.73224275]
[1758133338471,0.06,235.68,235.66,0.5]
[1758133338682,0.73,235.68,235.63,26.0]
[1758133338856,0.73,235.68,235.61,5.73224275]
[1758133338857,5.79224275,235.68,235.61,5.73224275]
[1758133339054,0.06,235.68,235.64,5.73224275]
[1758133339269,4.30309487,235.68,235.63,5.73224275]
[1758133339598,0.67,235.67,235.6,42.4]
[1758133339782,6.40224275,235.67,235.6,48.13224275]
[1758133340097,5.73224275,235.65,235.58,5.73224275]
[1758133340270,5.73224275,235.65,235.61,26.0]
[1758133340473,0.06,235.68,235.61,26.0]
[1758133340696,0.06,235.68,235.66,5.73224275]
[1758133340995,0.06,235.68,235.62,56.65559401]
[1758133340996,0.06,235.68,235.67,5.73224275]
[1758133341494,0.06,235.68,235.67,6.43224275]
[1758133341857,0.06,235.68,235.67,5.73224275]
[1758133342063,0.06,235.68,235.67,26.0]
[1758133342471,0.06,235.68,235.67,31.73224275]
[1758133343187,0.06,235.68,235.67,50.27105821]
[1758133343593,0.06,235.68,235.67,49.57105821]
[1758133343779,0.06,235.68,235.67,45.32783676]
[1758133344085,0.06,235.68,235.66,31.73224275]
[1758133344290,0.06,235.68,235.59,26.0]
[1758133344291,4.97309415,235.68,235.59,13.59559401]
[1758133344473,0.06,235.68,235.66,5.73224275]
[1758133344789,0.06,235.68,235.67,5.73224275]
[1758133344989,0.06,235.68,235.66,5.73224275]
[1758133345195,0.06,235.68,235.67,5.73224275]
[1758133345387,0.06,235.68,235.66,5.73224275]
[1758133345691,0.06,235.68,235.65,13.59559401]
[1758133345876,0.06,235.68,235.67,5.73224275]
[1758133346070,0.06,235.68,235.65,14.29559401]
[1758133346391,0.06,235.68,235.67,5.73224275]
[1758133346567,0.06,235.68,235.66,5.73224275]
[1758133346763,0.06,235.68,235.63,39.59559401]
[1758133346764,0.06,235.68,235.65,5.73224275]
[1758133346964,0.06,235.68,235.63,43.83937472]
[1758133347190,0.06,235.68,235.67,4.24322145]
[1758133347390,0.06,235.68,235.67,49.57105821]
[1758133347590,0.06,235.68,235.67,24.27105821]
[1758133347893,10.60013915,235.85,235.67,24.27105821]
[1758133347894,0.77,235.96,235.72,46.0]
[1758133348075,0.77,235.96,235.88,5.73224275]
[1758133348076,0.1,235.96,235.88,5.73224275]
[1758133348276,0.77,235.96,235.88,5.73224275]
[1758133348477,0.1,235.96,235.88,5.73224275]
[1758133348677,0.1,235.96,235.88,6.43224275]
[1758133348878,0.1,235.96,235.91,26.0]
[1758133349087,0.06,236.07,235.99,30.23746768]
[1758133349287,0.06,236.07,235.99,72.43746768]
[1758133349512,0.06,236.07,236.03,5.73224275]
[1758133350079,0.73,236.04,236.03,5.73224275]
[1758133350282,4.9666072,236.04,235.95,4.23803219]
[1758133350486,4.9666072,236.04,235.99,31.73224275]
[1758133350681,0.06,236.04,236.01,5.73224275]
[1758133350883,0.06,236.04,236.02,31.73224275]
[1758133351199,0.06,236.04,236.03,17.83234357]
[1758133351504,0.06,236.04,236.03,31.73224275]
[1758133352022,0.06,236.04,236.03,45.32783676]
[1758133353077,0.06,236.04,236.03,49.56458632]
[1758133353288,0.06,236.04,236.03,45.32783676]
[1758133353488,0.06,236.04,236.03,31.73224275]
[1758133353692,0.06,236.04,236.03,45.32783676]
[1758133353891,25.01812041,236.13,236.04,13.59559401]
[1758133354180,25.01812041,236.13,236.12,13.59559401]
[1758133354378,25.01812041,236.13,236.12,31.73224275]
[1758133354585,25.01812041,236.13,236.12,45.32783676]
[1758133355184,25.01812041,236.13,236.12,49.56297143]
[1758133356297,25.01812041,236.13,236.12,49.82297143]
[1758133356499,0.71,236.26,236.2,26.0]
[1758133356702,0.71,236.26,236.24,5.73224275]
[1758133357109,0.71,236.25,236.2,26.0]
[1758133357287,0.71,236.24,236.21,5.73224275]
[1758133357608,0.71,236.24,236.23,5.73224275]
[1758133357907,4.23257175,236.27,236.2,26.0]
[1758133358086,0.71,236.24,236.2,26.0]
[1758133358304,0.71,236.23,236.19,47.75224275]
[1758133358505,0.71,236.37,236.23,26.0]
[1758133358701,0.71,236.37,236.19,4.2338795]
[1758133358702,0.71,236.37,236.34,5.73224275]
[1758133358907,0.71,236.42,236.36,5.73224275]
[1758133359209,0.71,236.42,236.32,41.98]
[1758133359210,0.71,236.44,236.4,5.73224275]
[1758133359414,0.71,236.44,236.42,5.73224275]
[1758133359602,5.73224275,236.46,236.39,26.0]
[1758133359805,20.0,236.59,236.39,26.0]
[1758133359806,0.71,236.43,236.39,31.73224275]
[1758133360018,0.71,236.42,236.36,41.96]
[1758133360200,0.71,236.42,236.36,54.93063098]
[1758133360401,14.79920853,236.5,236.35,26.0]
[1758133360721,0.71,236.41,236.33,41.94]
[1758133360894,0.71,236.4,236.35,5.73224275]
[1758133361095,0.71,236.39,236.3,5.73224275]
[1758133361323,15.51666722,236.38,236.32,5.73224275]
[1758133361500,0.71,236.38,236.37,5.73224275]
[1758133361699,14.80608621,236.39,236.3,26.0]
[1758133361899,0.71,236.38,236.34,5.73224275]
[1758133362114,0.71,236.42,236.37,5.73224275]
[1758133362315,0.71,236.41,236.37,5.73224275]
[1758133362615,0.71,236.4,236.37,5.73224275]
[1758133362827,0.71,236.39,236.29,26.0]
[1758133363128,0.71,236.38,236.32,5.73224275]
[1758133363292,0.71,236.38,236.36,5.73224275]
[1758133363495,0.71,236.38,236.29,13.59559401]
[1758133363731,0.71,236.38,236.36,5.73224275]
[1758133363912,39.59559401,236.46,236.28,26.0]
[1758133363913,0.71,236.37,236.28,26.0]
[1758133364119,0.71,236.36,236.29,5.73224275]
[1758133364296,0.71,236.35,236.29,5.73224275]
[1758133364499,0.71,236.35,236.23,13.59559401]
[1758133364500,6.44224275,236.34,236.24,12.50961776]
[1758133364832,6.44224275,236.34,236.11,33.88804752]
[1758133364833,5.73224275,236.26,236.1,25.15983036]
[1758133365129,5.73224275,236.19,236.04,16.95179006]
[1758133365428,13.59559401,236.17,235.96,0.03]
[1758133365727,13.59559401,236.13,235.96,12.4743158]
[1758133365914,0.71,236.12,235.98,5.73224275]
[1758133366118,0.71,236.12,235.99,0.67]
[1758133366311,26.71,236.16,235.99,0.67]
[1758133366514,0.71,236.15,235.99,0.67]
[1758133366835,0.71,236.15,236.07,5.73224275]
[1758133367010,5.73224275,236.12,235.99,0.67]
[1758133367198,5.73224275,236.09,235.96,0.03]
[1758133367398,5.73224275,236.07,235.96,0.03]
[1758133367602,5.73224275,236.07,235.99,5.73224275]
[1758133367940,14.82422701,236.1,235.96,0.03]
[1758133367941,4.61189139,236.06,235.96,0.03]
[1758133368109,4.61189139,236.06,236.01,3.90189139]
[1758133368110,0.71,236.06,236.01,3.90189139]
[1758133368307,0.71,236.06,235.96,26.03]
[1758133368308,0.71,236.05,235.96,0.03]
[1758133368818,23.90189139,236.16,235.96,0.03]
[1758133368819,0.71,236.09,235.98,0.5]
[1758133369018,0.71,236.13,236.08,3.90189139]
[1758133369220,4.23531404,236.11,236.05,3.90189139]
[1758133369560,0.71,236.12,236.04,3.90189139]
[1758133369561,19.43498678,236.12,236.04,3.90189139]
[1758133369724,4.9452587,236.12,236.06,3.90189139]
[1758133369907,3.90189139,236.1,236.0,26.0]
[1758133370102,4.2352587,236.12,236.01,3.90189139]
[1758133370103,0.71,236.09,236.01,3.90189139]
[1758133370432,0.71,236.14,236.08,3.90189139]
[1758133370924,0.71,236.13,235.99,0.67]
[1758133371130,0.71,236.13,236.06,3.90189139]
[1758133371320,4.23479575,236.14,236.11,3.90189139]
[1758133371523,0.71,236.18,236.11,3.90189139]
[1758133371706,4.23423804,236.17,236.13,3.90189139]
[1758133371904,0.71,236.16,236.11,3.90189139]
[1758133372110,0.71,236.15,236.11,3.90189139]
[1758133372418,14.81983316,236.17,236.07,26.0]
[1758133372630,0.71,236.14,236.09,3.90189139]
[1758133372821,0.71,236.13,236.08,3.90189139]
[1758133373003,0.71,236.13,236.04,26.0]
[1758133373004,3.90189139,236.15,236.04,26.0]
[1758133373209,4.23549343,236.1,236.04,3.90189139]
[1758133373418,14.82422701,236.1,236.0,13.59559401]
[1758133373645,4.23549343,236.1,236.05,3.90189139]
[1758133373949,0.71,236.25,236.1,26.0]
[1758133374160,0.71,236.25,236.21,3.90189139]
[1758133374319,0.71,236.24,236.14,26.0]
[1758133374524,3.90189139,236.21,236.13,3.90189139]
[1758133374755,3.90189139,236.22,236.15,3.90189139]
[1758133374954,3.90189139,236.23,236.15,3.90189139]
[1758133375259,4.61189139,236.25,236.18,3.90189139]
[1758133375455,4.23287219,236.25,236.14,30.9047457]
[1758133375745,3.90189139,236.26,236.19,3.90189139]
[1758133375946,3.90189139,236.24,236.16,3.90189139]
[1758133376128,3.90189139,236.23,236.16,3.90189139]
[1758133376517,3.90189139,236.24,236.17,3.90189139]
[1758133377231,0.71,236.31,236.23,3.90189139]
[1758133377427,0.71,236.31,236.18,13.59559401]
[1758133377428,3.90189139,236.3,236.22,3.90189139]
[1758133377639,0.71,236.31,236.25,3.90189139]
[1758133377938,5.77321332,236.27,236.13,0.67]
[1758133378134,0.71,236.3,236.13,0.67]
[1758133378135,5.77321332,236.25,236.17,31.77321332]
[1758133378333,5.77321332,236.24,236.17,26.0]
[1758133378540,5.77321332,236.23,236.17,26.0]
[1758133378721,0.71,236.25,236.17,26.0]
[1758133378922,5.77321332,236.22,236.19,0.5]
[1758133379253,10.00691357,236.2,236.19,0.5]
[1758133379451,10.00691357,236.2,236.1,5.77321332]
[1758133379749,5.77321332,236.17,236.1,5.77321332]
[1758133379953,5.77321332,236.19,236.12,5.77321332]
[1758133380158,5.77321332,236.18,236.09,0.66]
[1758133380360,5.77321332,236.18,206.73,60.0]
[1758133380361,5.77321332,236.1,235.98,0.66]
[1758133380528,0.7,236.26,236.09,5.77321332]
[1758133380724,5.77321332,236.19,236.1,5.77321332]
[1758133380948,0.7,236.18,236.06,13.59559401]
[1758133381136,0.7,236.18,236.09,5.77321332]
[1758133381137,5.77321332,236.16,236.09,5.77321332]
[1758133381341,0.7,236.18,236.05,0.66]
[1758133381342,0.7,236.22,236.08,0.66]
[1758133381541,0.7,236.22,236.12,5.77321332]
[1758133381748,5.77321332,236.16,236.08,0.66]
[1758133381943,0.7,236.18,236.08,5.77321332]
[1758133382249,5.77321332,236.18,236.11,5.77321332]
[1758133382438,5.77321332,236.19,236.12,5.77321332]
[1758133382755,5.77321332,236.19,236.09,5.77321332]
[1758133382756,5.77321332,236.16,236.09,5.77321332]
[1758133382959,0.7,236.19,236.12,5.77321332]
[1758133383167,0.7,236.23,236.13,5.77321332]
[1758133383459,5.77321332,236.18,236.11,5.77321332]
[1758133383629,6.47321332,236.21,236.09,30.89561999]
[1758133383835,5.77321332,236.19,236.09,26.66]
[1758133384056,0.71,236.25,236.17,5.77321332]
[1758133384263,6.48321332,236.25,236.17,5.77321332]
[1758133384445,6.48321332,236.25,236.13,26.0]
[1758133384446,5.77321332,236.19,236.13,26.0]
[1758133384752,5.77321332,236.16,236.12,26.0]
[1758133384952,41.52462044,236.26,236.15,5.77321332]
[1758133385162,5.77321332,236.16,236.12,26.0]
[1758133385352,5.77321332,236.23,236.15,5.77321332]
[1758133385662,5.77321332,236.23,236.12,26.0]
[1758133385663,4.2328535,236.25,236.2,5.77321332]
[1758133385837,6.48321332,236.25,236.18,5.77321332]
[1758133386160,5.77321332,236.23,236.13,0.71]
[1758133386341,5.77321332,236.2,236.16,26.0]
[1758133386660,5.77321332,236.23,236.17,0.71]
[1758133386962,5.77321332,236.18,236.08,0.71]
[1758133387129,5.77321332,236.16,236.09,5.77321332]